fUST/lending_fUST_20241101
["ID","MTS","AMOUNT","RATE_DAILY","PERIOD"]
[341148412,1730473835194,-500.0,0.00036164,5]
[341148413,1730473835204,-500.0,0.00036164,5]
[341148414,1730473835215,-500.0,0.00036164,5]
[341148415,1730473835225,-500.0,0.00036164,5]
[341148416,1730473835234,-500.0,0.00036164,5]
[341148417,1730473835243,-527.94883455,0.00036164,5]
[341148418,1730473835253,-503.25,0.00036164,2]
[341148419,1730473835262,-539.32,0.00036164,5]
[341148420,1730473835271,-500.0,0.00036164,5]
[341148421,1730473835281,-691.21,0.00036164,5]
[341148422,1730473835290,-500.0,0.00036164,5]
[341148423,1730473835299,-500.0,0.00036164,5]
[341148424,1730473835309,-500.0,0.00036164,5]
[341148425,1730473835318,-500.0,0.00036164,5]
[341148426,1730473835327,-500.0,0.00036164,5]
[341148427,1730473835337,-508.75654828,0.00036164,5]
[341148428,1730473835349,-91.65167868,0.00036164,5]
[341148429,1730473835358,-500.0,0.00036164,5]
[341148430,1730473835368,-38.21832132,0.00036164,5]
[341148431,1730473835379,-461.78167868,0.00036164,5]
[341148432,1730473835388,-500.0,0.00036164,5]
[341148433,1730473835397,-512.11,0.00036164,5]
[341148434,1730473835406,-500.0,0.00036164,5]
[341148435,1730473835415,-500.0,0.00036164,5]
[341148436,1730473835427,-500.0,0.00036164,5]
[341148437,1730473835439,-500.0,0.00036164,5]
[341148438,1730473835449,-500.0,0.00036164,5]
[341148439,1730473835459,-500.0,0.00036164,5]
[341148440,1730473835469,-164.61,0.00036164,5]
[341148441,1730473835478,-500.0,0.00036164,5]
[341148442,1730473835487,-500.0,0.00036164,5]
[341148443,1730473835497,-500.0,0.00036164,5]
[341148444,1730473835506,-500.0,0.00036164,5]
[341148445,1730473835515,-500.0,0.00036164,5]
[341148446,1730473835525,-500.0,0.00036164,5]
[341148447,1730473835534,-500.0,0.00036164,5]
[341148448,1730473835543,-500.0,0.00036164,5]
[341148449,1730473835553,-500.0,0.00036164,5]
[341148450,1730473835562,-500.0,0.00036164,5]
[341148451,1730473835574,-500.0,0.00036164,5]
[341148452,1730473835584,-458.10963079,0.00036164,5]
[341148453,1730473835594,-500.0,0.00036164,5]
[341148454,1730473835603,-500.0,0.00036164,5]
[341148455,1730473835614,-583.44008723,0.00036164,5]
[341148456,1730473835624,-500.0,0.00036164,5]
[341148457,1730473835633,-5035.23,0.00036164,3]
[341148458,1730473835644,-500.0,0.00036164,5]
[341148459,1730473835654,-500.0,0.00036164,5]
[341148460,1730473835663,-587.31049046,0.00036164,5]
[341148461,1730473835673,-500.0,0.00036183,5]
[341148462,1730473835682,-500.0,0.00036213,2]
[341148463,1730473835692,-500.0,0.00036235,5]
[341148464,1730473835703,-309.1257563,0.00036411,2]
[341148465,1730473835712,-195.78235655,0.00036438,5]
[341148526,1730473838110,-604.81,0.00035616,5]
[341148528,1730473838120,-604.81,0.0003589,5]
[341148530,1730473838129,-604.81,0.00036164,5]
[341148532,1730473838139,-519.77764345,0.00036438,5]
[341148534,1730473838149,-500.0,0.00036438,5]
[341148536,1730473838159,-259.3619243,0.00036438,5]
[341148538,1730473838169,-500.0,0.00036438,5]
[341148540,1730473838180,-614.77654205,0.00036438,5]
[341148542,1730473838188,-518.67113163,0.00036438,5]
[341148544,1730473838198,-500.0,0.00036438,5]
[341148546,1730473838207,-233.5,0.00036438,5]
[341148548,1730473838216,-562.69,0.00036438,5]
[341148550,1730473838227,-500.0,0.00036438,5]
[341148552,1730473838236,-242.7,0.00036438,5]
[341148553,1730473838245,-500.0,0.00036438,5]
[341148556,1730473838254,-500.0,0.00036438,5]
[341148558,1730473838264,-500.0,0.00036438,5]
[341148559,1730473838273,-286.59971133,0.00036438,5]
[341148560,1730473838282,-500.0,0.00036438,5]
[341148561,1730473838292,-500.0,0.00036438,5]
[341148562,1730473838301,-500.0,0.00036438,5]
[341148563,1730473838310,-372.73,0.00036438,5]
[341148564,1730473838319,-512.11,0.00036438,5]
[341148565,1730473838330,-500.0,0.00036438,5]
[341148566,1730473838339,-500.0,0.00036438,5]
[341148567,1730473838349,-500.0,0.00036438,5]
[341148568,1730473838359,-257.97112251,0.00036438,5]
[341148569,1730473838369,-324.98125762,0.00036438,5]
[341148570,1730473838378,-500.0,0.00036438,5]
[341148571,1730473838387,-500.0,0.00036438,5]
[341148572,1730473838396,-500.0,0.00036438,5]
[341148573,1730473838405,-423.09096571,0.00036438,5]
[341148574,1730473838415,-500.0,0.00036438,5]
[341148575,1730473838428,-500.0,0.00036438,5]
[341148576,1730473838437,-500.0,0.00036438,5]
[341148577,1730473838448,-500.0,0.00036438,5]
[341148578,1730473838459,-514.98,0.00036438,5]
[341148579,1730473838468,-589.54548085,0.00036438,5]
[341148580,1730473838478,-500.0,0.00036438,5]
[341148581,1730473838487,-500.0,0.00036438,5]
[341148582,1730473838496,-5035.23,0.00036438,3]
[341148583,1730473838505,-513.79,0.00036438,5]
[341148584,1730473838514,-500.0,0.00036438,5]
[341148585,1730473838526,-604.81,0.00036438,5]
[341148586,1730473838538,-600.0,0.00036711,2]
[341148587,1730473838549,-715.56,0.00036712,5]
[341148588,1730473838558,-500.0,0.00036712,5]
[341148589,1730473838568,-500.0,0.00036712,5]
[341148590,1730473838581,-589.44,0.00036712,5]
[341148591,1730473838591,-156.81,0.00036712,5]
[341148592,1730473838600,-500.0,0.00036712,5]
[341148593,1730473838610,-500.0,0.00036712,5]
[341148594,1730473838622,-214.51347281,0.00036712,5]
[341148595,1730473838633,-582.51,0.00036712,5]
[341148596,1730473838644,-259.66,0.00036712,5]
[341148597,1730473838655,-500.0,0.00036712,5]
[341148598,1730473838665,-512.11,0.00036712,5]
[341148599,1730473838677,-500.0,0.00036712,5]
[341148600,1730473838686,-500.0,0.00036712,5]
[341148601,1730473838695,-500.0,0.00036712,5]
[341148602,1730473838704,-500.0,0.00036712,5]
[341148603,1730473838713,-500.0,0.00036712,5]
[341148604,1730473838723,-500.0,0.00036712,5]
[341148605,1730473838732,-500.0,0.00036712,5]
[341148606,1730473838743,-246.92213431,0.00036712,5]
[341148607,1730473838752,-568.5724876,0.00036712,5]
[341148608,1730473838761,-500.0,0.00036712,5]
[341148609,1730473838770,-5035.23,0.00036712,3]
[341148610,1730473838779,-500.0,0.00036712,5]
[341148611,1730473838788,-604.81,0.00036712,5]
[341148612,1730473838798,-1449.567,0.0003692,7]
[341148613,1730473838807,-715.56,0.00036986,5]
[341148614,1730473838817,-489.0214151,0.00036986,5]
[341148615,1730473838826,-500.0,0.00036986,5]
[341148616,1730473838836,-500.0,0.00036986,5]
[341148617,1730473838846,-500.0,0.00036986,5]
[341148618,1730473838856,-373.21158975,0.00036986,5]
[341148619,1730473838866,-512.11,0.00036986,5]
[341148620,1730473838875,-394.94919114,0.00036986,5]
[341148621,1730473838884,-275.33704112,0.00036986,5]
[341148622,1730473838894,-500.0,0.00036986,5]
[341148623,1730473838903,-500.0,0.00036986,5]
[341148624,1730473838912,-624.18410586,0.00036986,5]
[341148625,1730473838921,-500.0,0.00036986,5]
[341148626,1730473838931,-378.17578286,0.00036986,5]
[341148634,1730473840072,-121.82421714,0.00036986,5]
[341148635,1730473840081,-398.94383911,0.00036986,5]
[341148636,1730473840203,-114.16548677,0.00036986,5]
[341148637,1730473840213,-526.93454423,0.00036986,3]
[341148638,1730473840225,-4508.29545577,0.00036986,3]
[341148639,1730473840234,-500.0,0.00036986,5]
[341148640,1730473840243,-604.81,0.00036986,5]
[341148641,1730473840253,-2872.27064241,0.00037062,2]
[341148642,1730473840262,-715.56,0.0003726,5]
[341148643,1730473840271,-500.0,0.0003726,5]
[341148644,1730473840281,-500.0,0.0003726,5]
[341148645,1730473840290,-500.0,0.0003726,5]
[341148646,1730473840300,-512.11,0.0003726,5]
[341148647,1730473840309,-500.0,0.0003726,5]
[341148648,1730473840318,-500.0,0.0003726,5]
[341148649,1730473840328,-500.0,0.0003726,5]
[341148650,1730473840337,-486.97,0.0003726,5]
[341148651,1730473840346,-2409.18390182,0.0003726,3]
[341148743,1730473845917,-2626.04609818,0.0003726,3]
[341148745,1730473845928,-500.0,0.0003726,5]
[341148747,1730473845940,-604.81,0.0003726,5]
[341148749,1730473845951,-473.69,0.000373,2]
[341148751,1730473845961,-150.112233,0.000373,18]
[341148753,1730473845971,-10000.0,0.000374,30]
[341148755,1730473845981,-128057.58229339,0.000375,60]
[341149372,1730474231011,174.250625,0.00013973,2]
[341149647,1730475038785,-149.999998,0.00028852,2]
[341149649,1730475038796,-170.5081342,0.00029489,2]
[341149652,1730475038806,-430.26302424,0.0003,2]
[341149655,1730475038832,-3324.7739809,0.0003,2]
[341149657,1730475038846,-5130.66382417,0.0003,2]
[341150036,1730475043511,-0.54264168,0.0003,2]
[341150141,1730475271868,204.992847,0.00013973,2]
[341150254,1730476232848,-224.0,0.00027,2]
[341150256,1730476232858,-224.0,0.00027671,2]
[341150258,1730476232872,-224.0,0.00028767,2]
[341150260,1730476232881,-368.423911,0.00029229,2]
[341150262,1730476232891,-5147.67266098,0.00029436,2]
[341150265,1730476232910,-5147.67266099,0.00029702,2]
[341150267,1730476232921,-9978.68893397,0.0003,2]
[341150269,1730476232931,-158.0,0.0003,2]
[341150271,1730476232941,-183.357259,0.00030169,2]
[341150273,1730476232951,-229.0,0.00030205,2]
[341150275,1730476232960,-224.0,0.00032219,2]
[341150277,1730476232969,-828.76065214,0.00033931,2]
[341150279,1730476232979,-293.44801571,0.00033931,2]
[341150281,1730476232988,-6225.9095925,0.00034,20]
[341150283,1730476232998,-204.03837516,0.0003403,7]
[341150285,1730476233007,-212.48697037,0.00034031,7]
[341150287,1730476233017,-160000.0,0.00034031,30]
[341150289,1730476233026,-4023.83927288,0.00034031,10]
[341150655,1730476236701,-850.84901892,0.00029999,2]
[341150657,1730476236711,-20026.05098106,0.00034031,10]
[341150659,1730476236723,-9099.09578281,0.00034031,10]
[341150661,1730476236735,-400.11224814,0.00034031,10]
[341150826,1730476238444,-15850.90171471,0.00034031,10]
[341150828,1730476238455,-5080.87660601,0.00034031,7]
[341150830,1730476238466,-7937.49247021,0.00034031,7]
[341150832,1730476238477,-71930.72920827,0.00034031,20]
[341150835,1730476238491,-1597.87232015,0.00034031,20]
[341151033,1730476240392,-49944.33538347,0.00034031,20]
[341151035,1730476240403,-30544.24230149,0.00034031,30]
[341151041,1730476240455,-1542.93644363,0.00034031,30]
[341151300,1730476243394,-392.5181,0.00034031,30]
[341151307,1730476243453,-39641.67189004,0.00034031,30]
[341151504,1730476246434,-4180.91,0.00034031,30]
[341151505,1730476246447,-1565.28798229,0.00034031,30]
[341151506,1730476246459,-260.99999999,0.00034031,30]
[341151507,1730476246472,-16439.97842917,0.00034031,30]
[341151508,1730476246485,-5809.45485339,0.00034031,30]
[341151509,1730476246495,-151.0,0.00034031,14]
[341151510,1730476246509,-330.95949847,0.00034073,5]
[341151511,1730476246520,-500.0,0.00034073,2]
[341151512,1730476246530,-500.0,0.00034073,5]
[341151513,1730476246540,-224.0,0.00034233,2]
[341151514,1730476246549,-163.585231,0.00034377,2]
[341151515,1730476246559,-368.019,0.00034459,2]
[341151516,1730476246569,-224.0,0.00034521,2]
[341151517,1730476246578,-1000.0,0.00035442,2]
[341151518,1730476246588,-1000.0,0.00035442,5]
[341151519,1730476246599,-752.8,0.00035616,5]
[341151520,1730476246607,-500.0,0.00035616,5]
[341151521,1730476246617,-500.0,0.00035616,5]
[341151522,1730476246631,-500.0,0.00035616,5]
[341151523,1730476246641,-500.0,0.00035616,5]
[341151524,1730476246651,-520.35,0.00035616,5]
[341151525,1730476246661,-500.0,0.00035616,5]
[341151526,1730476246671,-500.0,0.00035616,5]
[341151527,1730476246680,-5381.42,0.00035616,3]
[341151528,1730476246690,-610.14,0.00035616,5]
[341151529,1730476246700,-692.84,0.00035616,5]
[341151530,1730476246710,-752.8,0.0003589,5]
[341151531,1730476246720,-500.0,0.0003589,5]
[341151532,1730476246733,-500.0,0.0003589,5]
[341151533,1730476246743,-500.0,0.0003589,5]
[341151534,1730476246753,-500.0,0.0003589,5]
[341151535,1730476246762,-520.35,0.0003589,5]
[341151536,1730476246772,-152.89,0.0003589,5]
[341151537,1730476246782,-5381.42,0.0003589,3]
[341151538,1730476246792,-692.84,0.0003589,5]
[341151539,1730476246801,-600.0,0.00035974,2]
[341151540,1730476246811,-752.8,0.00036164,5]
[341151541,1730476246821,-500.0,0.00036164,5]
[341151542,1730476246830,-500.0,0.00036164,5]
[341151543,1730476246839,-500.0,0.00036164,5]
[341151544,1730476246848,-500.0,0.00036164,5]
[341151545,1730476246858,-520.35,0.00036164,5]
[341151546,1730476246867,-5381.42,0.00036164,3]
[341151547,1730476246882,-692.84,0.00036164,5]
[341151548,1730476246892,-224.0,0.00036247,2]
[341151549,1730476246901,-604.63380239,0.00036349,2]
[341151550,1730476246911,-752.8,0.00036438,5]
[341151551,1730476246920,-500.0,0.00036438,5]
[341151552,1730476246930,-204.2,0.00036438,5]
[341151553,1730476246939,-500.0,0.00036438,5]
[341151554,1730476246949,-500.0,0.00036438,5]
[341151555,1730476246959,-520.35,0.00036438,5]
[341151556,1730476246968,-5381.42,0.00036438,3]
[341151557,1730476246978,-752.8,0.00036712,5]
[341151558,1730476246988,-500.0,0.00036712,5]
[341151559,1730476246998,-500.0,0.00036712,5]
[341151560,1730476247008,-500.0,0.00036712,5]
[341151561,1730476247017,-520.35,0.00036712,5]
[341151562,1730476247026,-5381.42,0.00036712,3]
[341151563,1730476247036,-502.29468667,0.00036983,5]
[341151564,1730476247046,-500.0,0.00036983,5]
[341151565,1730476247056,-557.0,0.00036983,2]
[341151566,1730476247065,-500.0,0.00036983,5]
[341151567,1730476247075,-500.0,0.00036983,5]
[341151568,1730476247085,-500.0,0.00036983,5]
[341151569,1730476247094,-500.0,0.00036983,5]
[341151570,1730476247103,-500.0,0.00036983,5]
[341151571,1730476247113,-500.0,0.00036983,5]
[341151572,1730476247125,-500.0,0.00036983,5]
[341151573,1730476247135,-500.0,0.00036983,5]
[341151574,1730476247146,-548.79298828,0.00036983,5]
[341151575,1730476247155,-500.0,0.00036983,5]
[341151576,1730476247165,-500.0,0.00036983,5]
[341151577,1730476247176,-409.84561146,0.00036983,5]
[341151578,1730476247186,-500.0,0.00036983,5]
[341151579,1730476247197,-500.0,0.00036983,5]
[341151580,1730476247208,-500.0,0.00036983,5]
[341151581,1730476247219,-500.0,0.00036983,5]
[341151582,1730476247230,-500.0,0.00036983,5]
[341151583,1730476247240,-500.0,0.00036983,5]
[341151584,1730476247251,-500.0,0.00036983,5]
[341151585,1730476247261,-500.0,0.00036983,5]
[341151586,1730476247270,-500.0,0.00036983,5]
[341151587,1730476247280,-500.0,0.00036983,5]
[341151588,1730476247289,-500.0,0.00036983,5]
[341151589,1730476247299,-500.0,0.00036983,5]
[341151590,1730476247309,-500.0,0.00036983,5]
[341151591,1730476247319,-500.0,0.00036983,5]
[341151592,1730476247330,-500.0,0.00036983,5]
[341151593,1730476247340,-507.39028176,0.00036983,5]
[341151594,1730476247349,-500.0,0.00036983,5]
[341151595,1730476247359,-500.0,0.00036983,5]
[341151596,1730476247368,-500.0,0.00036983,5]
[341151597,1730476247382,-500.0,0.00036983,5]
[341151598,1730476247391,-500.0,0.00036983,5]
[341151599,1730476247401,-500.0,0.00036983,5]
[341151600,1730476247410,-500.0,0.00036983,5]
[341151601,1730476247420,-500.0,0.00036983,5]
[341151602,1730476247433,-500.0,0.00036983,5]
[341151603,1730476247443,-500.0,0.00036983,5]
[341151604,1730476247452,-500.0,0.00036983,5]
[341151605,1730476247462,-500.0,0.00036983,5]
[341151606,1730476247473,-500.0,0.00036983,5]
[341151607,1730476247482,-503.07048213,0.00036983,5]
[341151608,1730476247492,-506.85,0.00036983,5]
[341151609,1730476247504,-500.0,0.00036983,5]
[341151610,1730476247608,-500.0,0.00036983,5]
[341151611,1730476247619,-500.0,0.00036983,5]
[341151612,1730476247632,-500.0,0.00036983,5]
[341151613,1730476247642,-500.0,0.00036983,5]
[341151614,1730476247653,-612.54512685,0.00036983,5]
[341151615,1730476247663,-500.0,0.00036983,5]
[341151616,1730476247673,-500.0,0.00036983,5]
[341151617,1730476247683,-500.0,0.00036983,5]
[341151618,1730476247693,-457.33011818,0.00036983,5]
[341151619,1730476247703,-500.0,0.00036983,5]
[341151620,1730476247713,-500.0,0.00036983,5]
[341151621,1730476247722,-500.0,0.00036983,5]
[341151622,1730476247732,-502.59242908,0.00036983,5]
[341151623,1730476247742,-500.0,0.00036983,5]
[341151624,1730476247752,-500.0,0.00036983,5]
[341151625,1730476247763,-500.0,0.00036983,5]
[341151626,1730476247772,-500.0,0.00036983,5]
[341151627,1730476247783,-500.0,0.00036983,5]
[341151628,1730476247793,-500.0,0.00036983,5]
[341151629,1730476247802,-500.0,0.00036983,5]
[341151630,1730476247812,-500.0,0.00036983,5]
[341151631,1730476247821,-500.0,0.00036983,5]
[341151632,1730476247831,-500.0,0.00036983,5]
[341151633,1730476247841,-500.0,0.00036983,5]
[341151634,1730476247851,-500.0,0.00036983,5]
[341151635,1730476247861,-500.0,0.00036983,5]
[341151636,1730476247871,-500.0,0.00036983,5]
[341151637,1730476247883,-500.0,0.00036983,5]
[341151638,1730476247892,-500.0,0.00036983,5]
[341151639,1730476247902,-500.0,0.00036983,5]
[341151640,1730476247911,-500.0,0.00036983,5]
[341151641,1730476247920,-500.0,0.00036983,5]
[341151642,1730476247930,-500.0,0.00036983,5]
[341151643,1730476247939,-500.0,0.00036983,5]
[341151644,1730476247949,-518.45153168,0.00036983,5]
[341151645,1730476247959,-500.0,0.00036983,2]
[341151646,1730476247970,-500.0,0.00036983,5]
[341151647,1730476247979,-500.0,0.00036983,5]
[341151648,1730476247989,-500.0,0.00036983,5]
[341151649,1730476247998,-500.0,0.00036983,5]
[341151650,1730476248007,-500.0,0.00036983,5]
[341151651,1730476248017,-500.0,0.00036983,5]
[341151652,1730476248027,-405.31693232,0.00036983,5]
[341151653,1730476248036,-500.0,0.00036983,5]
[341151654,1730476248046,-500.0,0.00036983,5]
[341151655,1730476248056,-500.0,0.00036983,5]
[341151656,1730476248066,-500.0,0.00036983,5]
[341151657,1730476248076,-500.0,0.00036983,5]
[341151658,1730476248086,-597.59308501,0.00036983,5]
[341151659,1730476248095,-500.0,0.00036983,5]
[341151660,1730476248105,-500.0,0.00036983,5]
[341151661,1730476248116,-269.32135743,0.00036983,5]
[341151662,1730476248131,-500.0,0.00036983,5]
[341151663,1730476248140,-500.0,0.00036983,5]
[341151664,1730476248149,-500.0,0.00036983,5]
[341151665,1730476248160,-500.0,0.00036983,5]
[341151666,1730476248169,-500.0,0.00036983,5]
[341151667,1730476248178,-363.94041575,0.00036983,5]
[341151668,1730476248188,-500.0,0.00036983,5]
[341151669,1730476248197,-500.0,0.00036983,5]
[341151670,1730476248207,-500.0,0.00036983,5]
[341151671,1730476248216,-500.0,0.00036983,5]
[341151672,1730476248226,-500.0,0.00036983,5]
[341151673,1730476248236,-507.55,0.00036983,5]
[341151674,1730476248246,-500.0,0.00036983,5]
[341151675,1730476248256,-500.0,0.00036983,5]
[341151676,1730476248265,-500.0,0.00036983,5]
[341151677,1730476248275,-500.0,0.00036983,5]
[341151678,1730476248285,-500.0,0.00036983,5]
[341151679,1730476248295,-500.0,0.00036983,5]
[341151680,1730476248305,-500.0,0.00036983,5]
[341151681,1730476248314,-500.0,0.00036983,5]
[341151682,1730476248324,-200.0,0.00036983,5]
[341151683,1730476248334,-570.59366314,0.00036983,5]
[341151684,1730476248344,-500.0,0.00036983,5]
[341151685,1730476248353,-516.12,0.00036983,5]
[341151686,1730476248363,-500.0,0.00036983,5]
[341151687,1730476248376,-500.0,0.00036983,5]
[341151688,1730476248386,-624.33,0.00036983,5]
[341151689,1730476248396,-500.0,0.00036983,5]
[341151690,1730476248406,-324.59531888,0.00036983,5]
[341151691,1730476248417,-500.0,0.00036983,5]
[341151692,1730476248428,-362.52887341,0.00036983,5]
[341151693,1730476248438,-500.0,0.00036983,5]
[341151694,1730476248448,-500.0,0.00036983,5]
[341151695,1730476248457,-500.0,0.00036983,5]
[341151696,1730476248467,-500.0,0.00036983,5]
[341151697,1730476248477,-500.0,0.00036983,5]
[341151698,1730476248486,-500.0,0.00036983,5]
[341151699,1730476248496,-500.0,0.00036983,5]
[341151700,1730476248506,-500.0,0.00036983,5]
[341151701,1730476248515,-503.0004923,0.00036983,5]
[341151702,1730476248524,-500.0,0.00036983,5]
[341151703,1730476248533,-500.0,0.00036983,5]
[341151704,1730476248543,-500.0,0.00036983,5]
[341151705,1730476248552,-500.0,0.00036983,5]
[341151706,1730476248562,-500.0,0.00036983,5]
[341151707,1730476248572,-500.0,0.00036983,5]
[341151708,1730476248583,-500.0,0.00036983,5]
[341151709,1730476248592,-500.0,0.00036983,5]
[341151710,1730476248602,-493.81891778,0.00036983,5]
[341151711,1730476248611,-222.39626281,0.00036983,5]
[341151712,1730476248620,-500.0,0.00036983,5]
[341151713,1730476248633,-500.0,0.00036983,5]
[341151714,1730476248642,-500.0,0.00036983,5]
[341151715,1730476248652,-503.4843423,0.00036983,5]
[341151716,1730476248661,-500.0,0.00036983,5]
[341151717,1730476248671,-500.0,0.00036983,5]
[341151718,1730476248680,-500.0,0.00036983,5]
[341151719,1730476248690,-500.0,0.00036983,5]
[341151720,1730476248703,-500.0,0.00036983,5]
[341151721,1730476248716,-500.0,0.00036983,5]
[341151722,1730476248726,-500.0,0.00036983,5]
[341151723,1730476248735,-500.0,0.00036983,5]
[341151724,1730476248744,-335.73780634,0.00036983,5]
[341151725,1730476248754,-500.0,0.00036983,5]
[341151726,1730476248763,-500.0,0.00036983,5]
[341151727,1730476248773,-500.0,0.00036983,5]
[341151728,1730476248782,-500.0,0.00036983,5]
[341151729,1730476248793,-633.40270403,0.00036983,5]
[341151730,1730476248802,-500.0,0.00036983,5]
[341151731,1730476248811,-500.0,0.00036983,5]
[341151732,1730476248824,-500.0,0.00036983,5]
[341151733,1730476248837,-500.0,0.00036983,5]
[341151734,1730476248847,-500.0,0.00036983,5]
[341151735,1730476248857,-500.0,0.00036983,5]
[341151736,1730476248867,-151.0,0.00036983,14]
[341151737,1730476248878,-151.0,0.00036983,14]
[341151738,1730476248888,-500.0,0.00036983,5]
[341151739,1730476248898,-500.0,0.00036983,5]
[341151740,1730476248907,-500.0,0.00036983,5]
[341151741,1730476248917,-500.0,0.00036983,5]
[341151742,1730476248926,-500.0,0.00036984,5]
[341151743,1730476248936,-752.8,0.00036986,5]
[341151744,1730476248945,-500.0,0.00036986,5]
[341151745,1730476248954,-298.57904633,0.00036986,5]
[341151746,1730476248964,-568.86,0.00036986,5]
[341151747,1730476248973,-520.35,0.00036986,5]
[341151748,1730476248983,-5381.42,0.00036986,3]
[341151749,1730476248992,-500.0,0.00037257,5]
[341151750,1730476249002,-500.0,0.00037257,5]
[341151751,1730476249012,-500.0,0.00037257,5]
[341151752,1730476249022,-523.23,0.00037257,5]
[341151753,1730476249033,-500.0,0.00037257,5]
[341151754,1730476249043,-500.0,0.00037257,5]
[341151755,1730476249053,-500.0,0.00037257,5]
[341151756,1730476249062,-500.0,0.00037257,5]
[341151757,1730476249073,-500.0,0.00037257,5]
[341151758,1730476249082,-500.0,0.00037257,5]
[341151759,1730476249092,-500.0,0.00037257,5]
[341151760,1730476249102,-514.65561434,0.00037257,5]
[341151761,1730476249112,-500.0,0.00037257,5]
[341151762,1730476249121,-500.0,0.00037257,5]
[341151763,1730476249135,-500.0,0.00037257,5]
[341151764,1730476249147,-500.0,0.00037257,5]
[341151765,1730476249157,-500.0,0.00037257,5]
[341151766,1730476249167,-500.0,0.00037257,5]
[341151767,1730476249176,-500.0,0.00037257,5]
[341151768,1730476249186,-500.0,0.00037257,5]
[341151769,1730476249195,-506.85,0.00037257,5]
[341151770,1730476249206,-500.0,0.00037257,5]
[341151771,1730476249215,-500.0,0.00037257,5]
[341151772,1730476249226,-500.0,0.00037257,5]
[341151773,1730476249236,-500.0,0.00037257,5]
[341151774,1730476249246,-408.33798233,0.00037257,5]
[341151775,1730476249255,-500.0,0.00037257,5]
[341151776,1730476249264,-263.26306768,0.00037257,5]
[341151777,1730476249274,-500.0,0.00037257,5]
[341151778,1730476249283,-362.40290489,0.00037257,5]
[341151779,1730476249292,-500.0,0.00037257,5]
[341151780,1730476249303,-500.0,0.00037257,5]
[341151781,1730476249312,-500.0,0.00037257,5]
[341151782,1730476249322,-500.0,0.00037257,5]
[341151783,1730476249331,-500.0,0.00037257,5]
[341151784,1730476249341,-500.0,0.00037257,5]
[341151785,1730476249351,-183.67,0.00037257,5]
[341151786,1730476249360,-500.0,0.00037257,5]
[341151787,1730476249370,-500.0,0.00037257,5]
[341151788,1730476249385,-500.0,0.00037257,5]
[341151789,1730476249396,-500.0,0.00037257,5]
[341151790,1730476249405,-500.0,0.00037257,5]
[341151791,1730476249415,-500.0,0.00037257,5]
[341151792,1730476249425,-500.0,0.00037257,5]
[341151793,1730476249436,-500.0,0.00037257,5]
[341151794,1730476249446,-500.0,0.00037257,5]
[341151795,1730476249455,-200.0,0.00037257,5]
[341151796,1730476249465,-500.0,0.00037257,5]
[341151797,1730476249475,-516.12,0.00037257,5]
[341151798,1730476249484,-242.22,0.00037257,5]
[341151799,1730476249494,-500.0,0.00037257,5]